fUST/lending_fUST_20250811
["ID","MTS","AMOUNT","RATE_DAILY","PERIOD"]
[378522013,1754895039910,-1500.0,0.00022301,2]
[378522014,1754895039920,-1500.0,0.00022301,2]
[378522015,1754895039930,-500.0,0.00022301,2]
[378522016,1754895039940,-1500.0,0.00022326,2]
[378522017,1754895039950,-582.1,0.00022328,2]
[378522018,1754895039960,-160.0,0.00022356,7]
[378522019,1754895039970,-151.0,0.000224,8]
[378522020,1754895039980,-357.80265,0.0002242,2]
[378522021,1754895039990,-151.0,0.000226,8]
[378522022,1754895040000,-582.1,0.0002265,2]
[378522024,1754895040009,-3304.72279363,0.00022774,2]
[378522026,1754895040019,-883.96,0.00022839,3]
[378522028,1754895040031,-2000.0,0.00022849,2]
[378522030,1754895040040,-2000.0,0.00022849,2]
[378522032,1754895040050,-589.29,0.00022861,3]
[378522034,1754895040059,-2000.0,0.00022874,2]
[378522035,1754895040070,-5000.0,0.00022876,2]
[378522037,1754895040080,-151.0,0.000229,5]
[378522040,1754895040091,-5888.0,0.00022903,2]
[378522041,1754895040102,-500.0,0.00022941,2]
[378522043,1754895040112,-1996.30380338,0.00022941,2]
[378522046,1754895040122,-497.89777023,0.00022941,2]
[378522047,1754895040131,-1996.30380338,0.00022941,2]
[378522048,1754895040141,-1996.30380338,0.00022941,2]
[378522049,1754895040151,-1996.30380338,0.00022941,2]
[378522050,1754895040161,-1996.30380338,0.00022941,2]
[378522052,1754895040170,-1996.30380338,0.00022941,2]
[378522054,1754895040180,-1996.30380338,0.00022941,2]
[378522056,1754895040189,-1996.30380338,0.00022941,2]
[378522057,1754895040199,-1996.30380338,0.00022941,2]
[378522058,1754895040208,-1996.30380338,0.00022941,2]
[378522059,1754895040219,-1996.30380338,0.00022941,2]
[378522060,1754895040228,-1996.30380338,0.00022941,2]
[378522061,1754895040238,-1996.30380338,0.00022941,2]
[378522062,1754895040247,-1996.30380338,0.00022941,2]
[378522063,1754895040257,-2076.15595552,0.00022941,2]
[378522064,1754895040266,-2076.15595552,0.00022941,2]
[378522065,1754895040275,-2076.15595552,0.00022941,2]
[378522066,1754895040284,-2076.15595552,0.00022941,2]
[378522067,1754895040293,-2076.15595552,0.00022941,2]
[378522068,1754895040302,-2076.15595552,0.00022941,2]
[378522069,1754895040312,-2076.15595552,0.00022941,2]
[378522070,1754895040321,-2076.15595552,0.00022941,2]
[378522071,1754895040331,-2076.15595552,0.00022941,2]
[378522072,1754895040340,-2076.15595552,0.00022941,2]
[378522073,1754895040349,-2412.82989426,0.00022941,2]
[378522074,1754895040357,-2412.82989426,0.00022941,2]
[378522075,1754895040367,-62333.63799893,0.00022942,2]
[378522076,1754895040377,-582.1,0.00022971,2]
[378522077,1754895040386,-357.80265,0.00022979,10]
[378522078,1754895040396,-3981.92222151,0.0002299,2]
[378522079,1754895040405,-151.0,0.0002299,7]
[378522080,1754895040415,-151.0,0.0002299,7]
[378522081,1754895040424,-5045.44332936,0.00023,2]
[378522082,1754895040433,-1340.68309606,0.00023,2]
[378522083,1754895040443,-160.0,0.00023,2]
[378522084,1754895040451,-1511.0,0.00023,2]
[378522085,1754895040461,-258.0,0.00023014,7]
[378522086,1754895040470,-3017.77313462,0.0002302,2]
[378522087,1754895040479,-18665.72866216,0.0002302,2]
[378522088,1754895040488,-357.80265,0.0002304,2]
[378522089,1754895040498,-1511.0,0.00023042,2]
[378522090,1754895040507,-3304.72279361,0.00023056,2]
[378522091,1754895040517,-1511.0,0.00023098,2]
[378522092,1754895040527,-11869.05906486,0.000231,5]
[378522093,1754895040536,-200.0,0.0002312,6]
[378522094,1754895040546,-424.275,0.00023127,2]
[378522095,1754895040555,-357.80265,0.00023137,15]
[378522096,1754895040564,-1511.0,0.00023164,2]
[378522097,1754895040574,-151.0,0.000232,6]
[378522098,1754895040583,-151.0,0.00023211,2]
[378522099,1754895040592,-198.0,0.00023211,2]
[378522100,1754895040602,-151.0,0.00023211,2]
[378522101,1754895040612,-151.46186466,0.00023211,2]
[378522102,1754895040623,-151.0,0.00023211,2]
[378522103,1754895040633,-151.6657843,0.00023211,2]
[378522104,1754895040642,-151.62036983,0.00023211,2]
[378522105,1754895040652,-151.0,0.00023211,2]
[378522106,1754895040662,-151.0,0.00023211,2]
[378522107,1754895040671,-151.0,0.00023211,2]
[378522108,1754895040681,-151.0,0.00023211,2]
[378522109,1754895040691,-239.23767765,0.00023211,2]
[378522110,1754895040700,-208.71854862,0.00023211,2]
[378522111,1754895040709,-151.0,0.00023211,2]
[378522112,1754895040719,-151.0,0.00023211,2]
[378522113,1754895040728,-17.07578618,0.00023211,2]
[378522114,1754895040754,-133.92421382,0.00023211,2]
[378522115,1754895040763,-151.0,0.00023211,2]
[378522116,1754895040773,-151.0,0.00023211,2]
[378522117,1754895040783,-151.0,0.00023211,2]
[378522118,1754895040792,-151.0,0.00023211,2]
[378522119,1754895040802,-151.0,0.00023211,2]
[378522120,1754895040812,-151.27698,0.00023211,2]
[378522121,1754895040821,-155.240556,0.00023211,2]
[378522122,1754895040831,-894.37345239,0.00023226,2]
[378522123,1754895040841,-3573.91631576,0.00023226,2]
[378522124,1754895040852,-636.0,0.00023256,2]
[378522125,1754895040861,-2151.0,0.00023256,2]
[378522126,1754895040871,-974.136,0.00023256,2]
[378522127,1754895040880,-151.0,0.00023263,7]
[378522128,1754895040890,-582.1,0.00023293,2]
[378522129,1754895040899,-5888.0,0.00023295,2]
[378522130,1754895040909,-850.676942,0.000233,7]
[378522131,1754895040918,-850.676942,0.000233,7]
[378522132,1754895040927,-151.0,0.000233,7]
[378522133,1754895040937,-590.222571,0.000233,7]
[378522134,1754895040947,-590.222571,0.000233,7]
[378522135,1754895040956,-151.0,0.000233,7]
[378522136,1754895040965,-151.0,0.000233,7]
[378522137,1754895040975,-150.0,0.000233,2]
[378522138,1754895040984,-724.821997,0.000233,7]
[378522139,1754895040993,-724.821997,0.000233,7]
[378522140,1754895041003,-3304.72279361,0.00023337,2]
[378522141,1754895041012,-1511.0,0.00023362,2]
[378522142,1754895041021,-1147.67398153,0.00023397,2]
[378522143,1754895041033,-1610.18574959,0.00023397,2]
[378522144,1754895041043,-151.0,0.000234,7]
[378522145,1754895041052,-151.527696,0.000234,7]
[378522146,1754895041061,-10000.0,0.000234,2]
[378522147,1754895041072,-2750.80403155,0.00023409,2]
[378522148,1754895041081,-357.80265,0.00023414,15]
[378522149,1754895041091,-721.04145896,0.00023422,2]
[378522150,1754895041100,-151.0,0.00023445,7]
[378522151,1754895041110,-367.613199,0.00023446,7]
[378522152,1754895041119,-367.613199,0.00023446,7]
[378522153,1754895041130,-160.0,0.00023467,2]
[378522154,1754895041139,-500.0,0.00023473,2]
[378522155,1754895041149,-500.0,0.00023473,2]
[378522156,1754895041158,-500.0,0.00023473,2]
[378522157,1754895041167,-500.0,0.00023473,2]
[378522158,1754895041176,-500.0,0.00023473,2]
[378522159,1754895041185,-500.0,0.00023473,2]
[378522160,1754895041195,-500.0,0.00023473,2]
[378522161,1754895041205,-500.0,0.00023473,2]
[378522162,1754895041215,-500.0,0.00023473,2]
[378522163,1754895041224,-500.0,0.00023473,2]
[378522164,1754895041233,-500.0,0.00023473,2]
[378522165,1754895041242,-505.589476,0.00023473,2]
[378522166,1754895041251,-500.0,0.00023473,2]
[378522167,1754895041261,-501.39986974,0.00023473,2]
[378522168,1754895041270,-500.0,0.00023473,2]
[378522169,1754895041279,-500.0,0.00023473,2]
[378522170,1754895041288,-500.0,0.00023473,2]
[378522171,1754895041297,-500.0,0.00023473,2]
[378522172,1754895041306,-500.0,0.00023473,2]
[378522173,1754895041315,-500.49069383,0.00023473,2]
[378522174,1754895041324,-500.78623683,0.00023473,2]
[378522175,1754895041333,-500.0,0.00023473,2]
[378522176,1754895041342,-500.0,0.00023473,2]
[378522177,1754895041351,-500.0,0.00023473,2]
[378522178,1754895041361,-500.0,0.00023473,2]
[378522179,1754895041370,-500.0,0.00023473,2]
[378522180,1754895041379,-501.71607261,0.00023473,2]
[378522181,1754895041389,-500.0,0.00023473,2]
[378522182,1754895041398,-500.0,0.00023473,2]
[378522183,1754895041407,-500.0,0.00023473,2]
[378522184,1754895041417,-500.0,0.00023473,2]
[378522185,1754895041426,-500.0,0.00023473,2]
[378522186,1754895041435,-459.83092009,0.00023473,2]
[378522187,1754895041444,-158.46341349,0.00023473,2]
[378522188,1754895041453,-500.0,0.00023473,2]
[378522189,1754895041462,-600.0,0.00023473,2]
[378522190,1754895041471,-500.67424642,0.00023473,2]
[378522191,1754895041480,-500.0,0.00023473,2]
[378522192,1754895041490,-500.0,0.00023473,2]
[378522193,1754895041499,-500.0,0.00023473,2]
[378522194,1754895041508,-500.0,0.00023473,2]
[378522195,1754895041517,-500.0,0.00023473,2]
[378522196,1754895041527,-500.0,0.00023473,2]
[378522197,1754895041536,-574.589025,0.00023473,2]
[378522198,1754895041545,-500.0,0.00023473,2]
[378522199,1754895041555,-420.41389619,0.00023473,2]
[378522200,1754895041564,-500.0,0.00023473,2]
[378522201,1754895041573,-500.0,0.00023473,2]
[378522202,1754895041582,-500.0,0.00023473,2]
[378522203,1754895041591,-151.0,0.00023473,7]
[378522204,1754895041600,-157.568371,0.00023473,7]
[378522205,1754895041610,-151.0,0.00023485,2]
[378522206,1754895041620,-151.0,0.00023485,2]
[378522207,1754895041629,-151.0,0.00023485,2]
[378522208,1754895041638,-176.83116402,0.00023485,2]
[378522209,1754895041647,-151.0,0.00023485,2]
[378522210,1754895041657,-151.0,0.00023485,2]
[378522211,1754895041666,-151.0,0.00023485,2]
[378522212,1754895041675,-151.0,0.00023485,2]
[378522213,1754895041684,-320.05709265,0.00023485,2]
[378522214,1754895041693,-365.36020119,0.00023499,7]
[378522215,1754895041703,-499.9455,0.00023499,7]
[378522216,1754895041711,-70000.0,0.000235,7]
[378522217,1754895041720,-1802.0,0.000235,3]
[378522218,1754895041730,-1000.0,0.000235,2]
[378522219,1754895041739,-152.756043,0.000235,7]
[378522220,1754895041748,-151.0,0.000235,7]
[378522221,1754895041757,-151.0,0.000235,7]
[378522222,1754895041766,-151.0,0.000235,7]
[378522223,1754895041775,-151.0,0.000235,7]
[378522224,1754895041785,-151.0,0.000235,7]
[378522225,1754895041795,-151.0,0.000235,7]
[378522226,1754895041805,-151.0,0.000235,7]
[378522227,1754895041815,-151.0,0.000235,7]
[378522228,1754895041824,-151.0,0.000235,7]
[378522229,1754895041833,-151.0,0.000235,7]
[378522230,1754895041843,-151.0,0.000235,7]
[378522231,1754895041852,-225.936142,0.000235,7]
[378522232,1754895041862,-225.936142,0.000235,7]
[378522233,1754895041873,-151.0,0.000235,7]
[378522234,1754895041883,-151.0,0.000235,7]
[378522235,1754895041893,-151.0,0.000235,7]
[378522236,1754895041902,-151.0,0.000235,7]
[378522237,1754895041912,-368.858743,0.000235,7]
[378522238,1754895041921,-499.9455,0.000235,7]
[378522239,1754895041931,-368.858743,0.000235,7]
[378522240,1754895041941,-499.9455,0.000235,7]
[378522241,1754895041950,-151.0,0.000235,7]
[378522242,1754895041959,-151.0,0.000235,7]
[378522243,1754895041969,-151.93656,0.000235,7]
[378522244,1754895041978,-151.0,0.000235,7]
[378522245,1754895041987,-151.0,0.000235,7]
[378522246,1754895041996,-151.0,0.000235,7]
[378522247,1754895042006,-850.676942,0.000235,7]
[378522248,1754895042016,-850.676942,0.000235,7]
[378522249,1754895042027,-8322.58,0.000235,7]
[378522250,1754895042036,-196.392852,0.000235,7]
[378522251,1754895042045,-590.222571,0.000235,7]
[378522252,1754895042055,-590.222571,0.000235,7]
[378522253,1754895042066,-151.0,0.000235,7]
[378522254,1754895042077,-151.0,0.000235,7]
[378522255,1754895042086,-151.0,0.000235,7]
[378522256,1754895042096,-151.0,0.000235,7]
[378522257,1754895042106,-66206.06,0.000235,7]
[378522258,1754895042115,-19238.91,0.000235,7]
[378522259,1754895042124,-724.821997,0.000235,7]
[378522260,1754895042133,-724.821997,0.000235,7]
[378522261,1754895042142,-151.0,0.000235,7]
[378522262,1754895042152,-151.0,0.000235,7]
[378522263,1754895042161,-151.0,0.000235,7]
[378522264,1754895042171,-151.0,0.000235,7]
[378522265,1754895042180,-151.0,0.000235,7]
[378522266,1754895042189,-151.0,0.000235,7]
[378522267,1754895042199,-152.463393,0.000235,7]
[378522268,1754895042208,-283.708424,0.000235,7]
[378522269,1754895042218,-283.708424,0.000235,7]
[378522270,1754895042227,-151.0,0.000235,7]
[378522271,1754895042236,-151.0,0.000235,7]
[378522272,1754895042245,-151.0,0.000235,7]
[378522273,1754895042255,-151.0,0.000235,7]
[378522274,1754895042264,-151.0,0.000235,7]
[378522275,1754895042273,-159.831988,0.000235,7]
[378522276,1754895042283,-159.831988,0.000235,7]
[378522277,1754895042292,-151.0,0.000235,7]
[378522278,1754895042301,-151.0,0.000235,7]
[378522279,1754895042311,-405.486746,0.000235,7]
[378522280,1754895042321,-405.486746,0.000235,7]
[378522281,1754895042331,-405.486746,0.000235,7]
[378522282,1754895042341,-405.486746,0.000235,7]
[378522283,1754895042350,-151.0,0.000235,7]
[378522284,1754895042359,-151.0,0.000235,7]
[378522285,1754895042368,-151.0,0.000235,7]
[378522286,1754895042378,-151.0,0.000235,7]
[378522287,1754895042387,-151.0,0.000235,7]
[378522288,1754895042396,-151.0,0.000235,7]
[378522289,1754895042407,-151.0,0.000235,7]
[378522290,1754895042417,-151.0,0.000235,7]
[378522291,1754895042426,-151.0,0.000235,7]
[378522292,1754895042435,-151.0,0.000235,7]
[378522293,1754895042444,-151.0,0.000235,7]
[378522294,1754895042454,-151.0,0.000235,7]
[378522295,1754895042463,-151.0,0.000235,7]
[378522296,1754895042472,-151.0,0.000235,7]
[378522297,1754895042481,-151.0,0.000235,7]
[378522298,1754895042490,-151.0,0.000235,7]
[378522299,1754895042499,-151.0,0.000235,7]
[378522300,1754895042508,-221.747255,0.000235,7]
[378522301,1754895042517,-221.747255,0.000235,7]
[378522302,1754895042527,-151.0,0.000235,7]
[378522303,1754895042538,-181.366461,0.000235,7]
[378522304,1754895042547,-151.0,0.000235,7]
[378522305,1754895042557,-151.0,0.000235,7]
[378522306,1754895042566,-151.210671,0.000235,7]
[378522307,1754895042575,-417.15472785,0.000235,3]
[378522308,1754895042584,-417.15472785,0.000235,7]
[378522309,1754895042594,-151.0,0.000235,7]
[378522310,1754895042604,-231.9940742,0.000235,3]
[378522311,1754895042613,-160.0,0.000235,3]
[378522312,1754895042622,-367.613199,0.000235,7]
[378522313,1754895042631,-367.613199,0.000235,7]
[378522314,1754895042641,-367.613199,0.000235,7]
[378522315,1754895042650,-367.613199,0.000235,7]
[378522316,1754895042659,-12671.21867243,0.000235,3]
[378522317,1754895042668,-12671.21867243,0.000235,7]
[378522318,1754895042677,-215.4905783,0.000235,3]
[378522320,1754895042687,-215.4905783,0.000235,7]
[378522321,1754895042696,-160.0,0.000235,3]
[378522322,1754895042706,-843.18994796,0.000235,3]
[378522323,1754895042715,-160.0,0.000235,3]
[378522324,1754895042724,-527.9539256,0.000235,3]
[378522325,1754895042733,-527.9539256,0.000235,7]
[378522326,1754895042742,-160.0,0.000235,3]
[378522327,1754895042751,-160.0,0.000235,7]
[378522328,1754895042760,-151.0,0.000235,7]
[378522329,1754895042769,-151.0,0.000235,7]
[378522330,1754895042778,-793.744897,0.000235,7]
[378522331,1754895042787,-793.744897,0.000235,7]
[378522332,1754895042797,-793.744897,0.000235,7]
[378522333,1754895042806,-793.744897,0.000235,7]
[378522334,1754895042815,-160.0,0.000235,3]
[378522335,1754895042825,-192.600626,0.000235,7]
[378522336,1754895042834,-192.600626,0.000235,7]
[378522337,1754895042843,-216.68257536,0.000235,3]
[378522338,1754895042852,-192.600626,0.000235,7]
[378522339,1754895042861,-192.600626,0.000235,7]
[378522340,1754895042871,-160.0,0.000235,3]
[378522341,1754895042880,-160.0,0.000235,7]
[378522342,1754895042889,-160.0,0.000235,3]
[378522343,1754895042898,-160.0,0.000235,3]
[378522344,1754895042908,-5888.0,0.00023544,2]
[378522345,1754895042917,-357.80265,0.00023584,10]
[378522346,1754895042926,-151.0,0.000236,5]
[378522347,1754895042935,-152.718368,0.00023605,7]
[378522348,1754895042944,-367.613199,0.00023605,7]
[378522349,1754895042953,-367.613199,0.00023605,7]
[378522350,1754895042963,-1511.0,0.00023605,2]
[378522351,1754895042972,-582.1,0.00023614,3]
[378522352,1754895042981,-3304.72279361,0.00023619,2]
[378522353,1754895042990,-151.0,0.00023619,7]
[378522354,1754895042999,-793.744897,0.00023619,7]
[378522355,1754895043009,-793.744897,0.00023619,7]
[378522356,1754895043019,-560.0,0.00023653,2]
[378522357,1754895043030,-589.3,0.00023656,3]
[378522358,1754895043039,-357.80265,0.0002366,2]
[378522359,1754895043048,-151.0,0.00023672,7]
[378522360,1754895043058,-151.0,0.00023685,7]
[378522361,1754895043069,-278.990504,0.00023686,7]
[378522362,1754895043078,-357.80265,0.00023691,15]
[378522363,1754895043088,-200.0,0.00023709,15]
[378522364,1754895043097,-200.0,0.00023709,15]
[378522365,1754895043108,-200.0,0.00023709,15]
[378522366,1754895043117,-200.0,0.00023709,15]
[378522367,1754895043127,-200.0,0.00023709,15]
[378522368,1754895043260,-200.0,0.00023709,15]
[378522369,1754895043270,-200.0,0.00023709,15]
[378522370,1754895043279,-1511.0,0.00023733,2]
[378522371,1754895043289,-417.15472785,0.0002374,10]
[378522372,1754895043298,-12671.21867243,0.0002374,10]
[378522373,1754895043307,-215.4905783,0.0002374,10]
[378522374,1754895043316,-527.9539256,0.0002374,10]
[378522375,1754895043325,-6628.27914584,0.00023744,2]
[378522376,1754895043334,-357.80265,0.0002375,7]
[378522377,1754895043343,-151.0,0.00023759,2]
[378522378,1754895043352,-151.0,0.00023759,2]
[378522379,1754895043361,-154.92498305,0.00023759,2]
[378522380,1754895043371,-151.0,0.00023759,2]
[378522381,1754895043380,-198.0,0.00023759,2]
[378522382,1754895043389,-198.0,0.00023759,2]
[378522383,1754895043398,-198.0,0.00023759,2]
[378522384,1754895043409,-6628.27914584,0.00023764,2]
[378522385,1754895043418,-151.0,0.0002379,7]
[378522386,1754895043427,-151.0,0.0002379,7]
[378522387,1754895043436,-14729.50921258,0.00023798,2]
[378522388,1754895043445,-151.0,0.000238,8]
[378522389,1754895043455,-151.0,0.000238,7]
[378522390,1754895043464,-560.0,0.0002383,2]
[378522391,1754895043473,-3304.72279361,0.000239,2]
[378522392,1754895043482,-600.0,0.00023904,2]
[378522393,1754895043492,-18665.72866214,0.0002391,2]
[378522394,1754895043501,-500.0,0.00023922,2]
[378522395,1754895043510,-2200.0,0.00023922,2]
[378522396,1754895043519,-582.1,0.00023936,3]
[378522397,1754895043528,-1511.0,0.00023962,2]
[378522398,1754895043538,-357.80265,0.00023968,15]
[378522399,1754895043547,-509.5504893,0.00023973,2]
[378522400,1754895043557,-500.0,0.00023973,2]
[378522401,1754895043567,-150.0,0.00023973,2]
[378522402,1754895043576,-500.0,0.00023973,2]
[378522403,1754895043586,-500.24729121,0.00023973,2]
[378522404,1754895043595,-500.0,0.00023973,2]
[378522405,1754895043605,-248.49009127,0.00023973,2]
[378522406,1754895043614,-500.0,0.00023973,2]
[378522407,1754895043624,-158.46401038,0.00023973,2]
[378522408,1754895043634,-500.0,0.00023973,2]
[378522409,1754895043643,-535.9525052,0.00023973,2]
[378522410,1754895043653,-500.0,0.00023973,2]
[378522411,1754895043662,-500.0,0.00023973,2]
[378522412,1754895043672,-500.0,0.00023973,2]
[378522413,1754895043682,-500.0,0.00023973,2]
[378522414,1754895043691,-612.83555691,0.00023973,2]
[378522415,1754895043701,-500.0,0.00023973,2]
[378522416,1754895043710,-500.0,0.00023973,2]
[378522417,1754895043720,-151.0,0.00023973,7]
[378522418,1754895043730,-151.0,0.00023973,7]
[378522419,1754895043740,-151.0,0.00023973,7]
[378522420,1754895043750,-151.0,0.00023973,7]
[378522421,1754895043759,-151.0,0.00023973,7]
[378522423,1754895043769,-151.0,0.00023973,7]
[378522425,1754895043779,-499.9455,0.00023973,7]
[378522427,1754895043788,-499.9455,0.00023973,7]
[378522428,1754895043798,-151.0,0.00023973,7]
[378522430,1754895043807,-151.0,0.00023973,7]
[378522431,1754895043817,-290.218247,0.00023973,7]
[378522432,1754895043826,-151.0,0.00023973,7]
[378522433,1754895043836,-151.0,0.00023973,7]
[378522434,1754895043845,-192.600626,0.00023973,7]
[378522436,1754895043854,-192.600626,0.00023973,7]
[378522438,1754895043863,-151.0,0.00023976,7]
[378522440,1754895043874,-151.0,0.00023976,7]
[378522441,1754895043883,-150.0,0.00023977,2]
[378522442,1754895043894,-408.400801,0.00023977,7]
[378522443,1754895043903,-408.400801,0.00023977,7]
[378522444,1754895043913,-151.0,0.0002399,7]
[378522446,1754895043922,-151.0,0.0002399,7]
[378522447,1754895043931,-151.0,0.0002399,7]
[378522448,1754895043941,-209.829137,0.0002399,7]
[378522449,1754895043950,-151.0,0.0002399,7]
[378522450,1754895043959,-151.0,0.0002399,7]
[378522451,1754895043968,-151.0,0.0002399,7]
[378522452,1754895043978,-151.0,0.0002399,7]
[378522453,1754895043987,-151.0,0.0002399,7]
[378522454,1754895043997,-151.0,0.0002399,7]
[378522455,1754895044006,-225.936142,0.0002399,7]
[378522456,1754895044017,-225.936142,0.0002399,7]
[378522457,1754895044029,-151.0,0.0002399,7]
[378522458,1754895044039,-151.0,0.0002399,7]
[378522459,1754895044048,-152.468289,0.0002399,7]
[378522461,1754895044057,-151.0,0.0002399,7]
[378522463,1754895044067,-151.0,0.0002399,7]
[378522465,1754895044078,-368.858743,0.0002399,7]
[378522467,1754895044088,-499.9455,0.0002399,7]
[378522469,1754895044098,-368.858743,0.0002399,7]
[378522470,1754895044107,-499.9455,0.0002399,7]
[378522472,1754895044118,-151.0,0.0002399,7]
[378522473,1754895044129,-152.973636,0.0002399,7]
[378522474,1754895044139,-151.0,0.0002399,7]
[378522475,1754895044148,-151.0,0.0002399,7]
[378522476,1754895044157,-151.0,0.0002399,7]
[378522477,1754895044167,-151.0,0.0002399,7]
[378522478,1754895044177,-153.400648,0.0002399,7]
[378522479,1754895044186,-850.676942,0.0002399,7]
[378522480,1754895044197,-850.676942,0.0002399,7]
[378522481,1754895044207,-850.676942,0.0002399,7]
[378522482,1754895044216,-850.676942,0.0002399,7]
[378522483,1754895044225,-590.222571,0.0002399,7]
[378522484,1754895044235,-590.222571,0.0002399,7]
[378522485,1754895044244,-590.222571,0.0002399,7]
[378522486,1754895044253,-590.222571,0.0002399,7]
[378522487,1754895044263,-151.0,0.0002399,7]
[378522488,1754895044273,-151.0,0.0002399,7]
[378522489,1754895044282,-151.0,0.0002399,7]
[378522490,1754895044291,-151.0,0.0002399,7]
[378522491,1754895044301,-151.0,0.0002399,7]
[378522492,1754895044310,-151.0,0.0002399,7]
[378522493,1754895044319,-152.220325,0.0002399,7]
[378522494,1754895044328,-151.0,0.0002399,7]
[378522495,1754895044337,-151.0,0.0002399,7]
[378522496,1754895044347,-724.821997,0.0002399,7]
[378522497,1754895044355,-724.821997,0.0002399,7]
[378522498,1754895044365,-724.821997,0.0002399,7]
[378522499,1754895044375,-724.821997,0.0002399,7]
[378522500,1754895044385,-151.0,0.0002399,7]
[378522501,1754895044394,-151.0,0.0002399,7]
[378522502,1754895044403,-151.0,0.0002399,7]
[378522503,1754895044412,-151.0,0.0002399,7]
[378522504,1754895044422,-408.400801,0.0002399,7]
[378522505,1754895044431,-408.400801,0.0002399,7]
[378522506,1754895044441,-283.708424,0.0002399,7]
[378522507,1754895044450,-283.708424,0.0002399,7]
[378522508,1754895044459,-151.861524,0.0002399,7]
[378522509,1754895044469,-159.831988,0.0002399,7]
[378522510,1754895044478,-159.831988,0.0002399,7]
[378522511,1754895044487,-151.0,0.0002399,7]
[378522512,1754895044497,-204.864048,0.0002399,7]
[378522513,1754895044506,-151.0,0.0002399,7]
[378522514,1754895044516,-151.0,0.0002399,7]
[378522515,1754895044525,-153.5202,0.0002399,7]
[378522516,1754895044534,-151.0,0.0002399,7]
[378522517,1754895044543,-151.0,0.0002399,7]
[378522518,1754895044553,-221.747255,0.0002399,7]
[378522519,1754895044562,-221.747255,0.0002399,7]
[378522520,1754895044571,-278.941149,0.0002399,7]
[378522521,1754895044580,-151.0,0.0002399,7]
[378522522,1754895044589,-323.1287365,0.00024,2]
[378522523,1754895044599,-455.68796976,0.00024,2]
[378522524,1754895044607,-181.47604681,0.00024,7]
[378522525,1754895044617,-1700.24749484,0.00024,2]
[378522526,1754895044627,-72319.75041545,0.00024,2]
[378522527,1754895044636,-269.42,0.00024,2]
[378522528,1754895044646,-151.0,0.00024,7]
[378522529,1754895044655,-182.598046,0.00024,7]
[378522530,1754895044664,-151.0,0.00024,7]
[378522531,1754895044674,-151.0,0.00024,7]
[378522532,1754895044683,-151.0,0.00024,7]
[378522533,1754895044692,-151.0,0.00024,7]
[378522534,1754895044702,-151.0,0.00024,7]
[378522535,1754895044711,-151.0,0.00024,7]
[378522536,1754895044720,-225.936142,0.00024,7]
[378522537,1754895044729,-225.936142,0.00024,7]
[378522538,1754895044738,-151.0,0.00024,7]
[378522539,1754895044747,-240.972281,0.00024,7]
[378522540,1754895044756,-368.858743,0.00024,7]
[378522541,1754895044765,-499.9455,0.00024,7]
[378522542,1754895044774,-368.858743,0.00024,7]